bitfinex-derivatives/quotes_BNBF0:USTF0_20250529
["timestamp","ask_amount","ask_price","bid_price","bid_amount"]
[1748521057734,0.29209019,684.72,683.5,0.574]
[1748521057937,1.01315931,684.71,683.5,0.574]
[1748521058234,1.01314279,684.7,683.5,0.574]
[1748521058435,1.30516474,684.69,683.5,0.574]
[1748521058629,1.30516901,684.68,683.5,0.574]
[1748521058934,1.30517327,684.67,683.5,0.574]
[1748521059228,0.25431997,684.81,683.5,0.574]
[1748521059229,1.30514346,684.66,683.5,0.574]
[1748521059429,1.30519394,684.65,683.5,0.574]
[1748521059633,0.29212006,684.65,683.5,0.574]
[1748521060328,1.0130226,684.64,683.5,0.574]
[1748521060528,0.29212859,684.63,683.5,0.574]
[1748521060733,1.01301802,684.62,683.5,0.574]
[1748521060931,1.01301924,684.61,683.5,0.574]
[1748521061133,1.01301924,684.6,683.5,0.574]
[1748521061329,1.01301924,684.59,683.5,0.574]
[1748521061532,0.29213286,684.62,683.5,0.574]
[1748521061737,1.0130785,684.61,683.5,0.574]
[1748521062036,1.01307637,684.6,683.5,0.574]
[1748521062232,1.01307697,684.59,683.5,0.574]
[1748521062427,0.29213286,684.62,683.5,0.574]
[1748521062428,1.01307697,684.58,683.5,0.574]
[1748521062633,0.29213286,684.62,683.5,0.574]
[1748521062634,1.01300829,684.57,683.5,0.574]
[1748521062835,1.01300829,684.56,683.5,0.574]
[1748521063036,1.0130161,684.55,683.5,0.574]
[1748521063335,0.29213286,684.62,683.5,0.574]
[1748521063530,1.01302628,684.61,683.5,0.574]
[1748521063735,1.01302628,684.6,683.5,0.574]
[1748521063935,1.01302628,684.59,683.5,0.574]
[1748521064235,1.01302628,684.58,683.39,0.29265865]
[1748521064436,1.01302628,684.57,683.39,0.29265865]
[1748521064631,1.01302628,684.56,683.39,0.29265865]
[1748521064832,1.01302628,684.55,683.39,0.29265865]
[1748521065034,1.01302628,684.54,683.39,0.29265865]
[1748521065234,1.01302628,684.53,683.39,0.29265865]
[1748521065535,1.01312069,684.52,683.39,0.29265865]
[1748521065838,1.01316752,684.51,683.39,0.29265865]
[1748521066035,1.01316752,684.5,683.39,0.29265865]
[1748521066335,1.01316752,684.49,683.39,0.29265865]
[1748521066534,1.01316752,684.48,683.39,0.29265865]
[1748521066735,1.01316752,684.47,683.4,0.573]
[1748521067042,1.01312598,684.46,683.4,0.573]
[1748521067230,1.01312564,684.45,683.4,0.573]
[1748521067432,1.01307274,684.44,683.4,0.573]
[1748521067635,1.01306927,684.43,683.4,0.573]
[1748521067836,1.01314613,684.42,683.4,0.573]
[1748521068031,1.01314613,684.41,683.4,1.03236335]
[1748521068239,1.01314613,684.4,683.4,1.03236335]
[1748521068430,0.29213286,684.62,683.4,1.03236335]
[1748521068632,1.01292744,684.61,683.4,0.573]
[1748521068833,1.01292744,684.6,683.4,0.573]
[1748521069035,1.01292744,684.59,683.4,0.573]
[1748521069237,1.01293114,684.58,683.43,0.45936335]
[1748521069435,1.0128933,684.57,683.43,0.45936335]
[1748521069636,1.0128933,684.56,683.44,0.45936335]
[1748521069836,1.0128933,684.55,683.44,0.45936335]
[1748521070037,1.0128933,684.54,683.42,0.45936335]
[1748521070236,0.29213286,684.62,683.42,0.45936335]
[1748521070538,0.29213286,684.62,683.4,0.573]
[1748521070539,1.01280999,684.61,683.43,0.45936335]
[1748521070840,1.01291004,684.6,683.43,0.45936335]
[1748521071032,1.01291098,684.59,683.43,0.45936335]
[1748521071232,1.01290913,684.58,683.43,0.45936335]
[1748521071436,1.01290913,684.57,683.44,0.45936335]
[1748521071638,1.01290913,684.56,683.44,0.45936335]
[1748521071841,1.01290913,684.55,683.44,0.45936335]
[1748521072039,1.01290913,684.54,683.44,0.45936335]
[1748521072236,0.29213286,684.62,683.44,0.45936335]
[1748521072237,1.01290913,684.53,683.44,0.45936335]
[1748521072433,1.01245567,684.52,683.44,0.45936335]
[1748521072639,1.01257657,684.51,683.44,0.45936335]
[1748521072838,1.01257595,684.5,683.44,0.45936335]
[1748521073040,1.01257729,684.49,683.42,0.45936335]
[1748521073236,1.01257729,684.48,683.41,0.45936335]
[1748521073435,1.01257729,684.47,683.41,0.45936335]
[1748521073637,1.01257729,684.46,683.41,0.45936335]
[1748521073836,1.01257729,684.45,683.45,0.45936335]
[1748521074142,1.01257729,684.44,683.45,0.45936335]
[1748521074440,1.01272003,684.43,683.45,0.45936335]
[1748521074637,1.01272003,684.42,683.45,0.45936335]
[1748521074840,0.29213286,684.62,683.45,0.45936335]
[1748521074841,1.01272003,684.41,683.45,0.45936335]
[1748521075042,1.01275287,684.4,683.45,0.45936335]
[1748521075242,1.01275287,684.39,683.43,0.45936335]
[1748521075538,1.01275287,684.38,683.43,0.45936335]
[1748521075742,1.01275287,684.37,683.43,0.45936335]
[1748521076043,0.29213286,684.62,683.43,0.45936335]
[1748521076238,1.01279484,684.61,683.43,0.45936335]
[1748521076441,1.01276808,684.6,683.4,0.573]
[1748521076639,1.01277351,684.59,683.4,0.573]
[1748521076840,1.01277195,684.58,683.4,0.573]
[1748521077040,0.29213286,684.62,683.4,0.573]
[1748521077041,1.01277205,684.57,683.4,0.573]
[1748521077336,1.01277205,684.56,683.4,0.573]
[1748521077538,1.01277205,684.55,683.4,0.573]
[1748521077740,1.01273786,684.54,683.4,0.573]
[1748521077937,1.01273786,684.53,683.4,0.573]
[1748521078139,1.01272427,684.52,683.4,0.573]
[1748521078337,1.01272427,684.51,683.4,0.573]
[1748521078542,0.29213286,684.62,683.4,0.573]
[1748521078741,1.01270684,684.61,683.4,0.573]
[1748521078938,1.01270909,684.6,683.4,0.573]
[1748521079138,1.01270909,684.59,683.4,0.573]
[1748521079339,1.01270909,684.58,683.4,0.573]
[1748521079543,1.01270909,684.57,683.4,0.573]
[1748521079844,1.01268028,684.56,683.4,0.573]
[1748521080044,0.29213286,684.62,683.4,0.573]
[1748521080045,1.01268028,684.55,683.4,0.573]
[1748521080240,0.29213286,684.62,683.4,0.573]
[1748521081345,1.01267604,684.61,683.4,0.573]
[1748521081543,0.29213286,684.62,683.4,0.573]
[1748521081945,1.01267336,684.61,683.4,0.573]
[1748521082145,1.01267459,684.6,683.4,0.573]
[1748521082347,1.01266255,684.59,683.44,0.45936335]
[1748521082549,0.29213286,684.62,683.44,0.45936335]
[1748521082950,1.01266603,684.61,683.44,0.45936335]
[1748521083250,1.0126577,684.6,683.44,0.45936335]
[1748521083450,0.29213286,684.62,683.44,0.45936335]
[1748521083847,1.01270672,684.61,683.45,0.45936335]
[1748521084051,1.01270962,684.6,683.45,0.45936335]
[1748521084244,0.29213286,684.62,683.46,0.45936335]
[1748521084446,1.01273919,684.61,683.46,0.45936335]
[1748521084649,1.01281778,684.6,683.45,0.45936335]
[1748521084854,1.01281822,684.59,683.46,0.45936335]
[1748521085051,1.01281697,684.58,683.48,0.45936335]
[1748521085248,0.29213286,684.62,683.48,0.45936335]
[1748521085546,0.29213286,684.62,683.43,0.45936335]
[1748521085746,0.29213286,684.62,683.45,0.45936335]
[1748521086447,0.29213286,684.62,683.4,0.573]
[1748521086448,0.29213286,684.62,683.54,0.45936335]
[1748521087046,0.29213286,684.62,683.52,0.45936335]
[1748521087246,1.01305518,684.61,683.53,0.45936335]
[1748521087452,0.29213286,684.62,683.53,0.45936335]
[1748521088254,0.29213286,684.62,683.54,0.45936335]
[1748521088452,1.01311228,684.61,683.56,0.45936335]
[1748521088652,1.01311228,684.6,683.56,0.45936335]
[1748521088853,1.01314835,684.59,683.56,0.45936335]
[1748521089054,1.01314835,684.58,683.56,0.45936335]
[1748521089255,1.01314835,684.58,683.39,0.29265865]
[1748521089256,0.29213286,684.62,683.47,0.45936335]
[1748521089450,1.01317111,684.61,683.47,0.45936335]
[1748521089654,0.29213286,684.62,683.48,0.45936335]
[1748521090054,1.01317024,684.61,683.48,1.01236335]
[1748521090253,1.01317024,684.6,683.48,1.01236335]
[1748521090449,1.01317024,684.59,683.49,0.45936335]
[1748521090650,1.01317024,684.58,683.5,0.45936335]
[1748521090849,0.29213286,684.62,683.5,0.45936335]
[1748521090850,1.01317024,684.57,683.5,0.45936335]
[1748521091054,1.01318836,684.56,683.5,0.45936335]
[1748521091249,0.29213286,684.62,683.51,0.45936335]
[1748521091250,1.01318836,684.55,683.51,0.45936335]
[1748521091450,1.01320109,684.54,683.48,0.553]
[1748521091656,1.01320103,684.53,683.48,0.553]
[1748521091849,1.01320103,684.52,683.48,0.553]
[1748521092050,1.01320103,684.51,683.48,0.553]
[1748521092255,1.01322015,684.5,683.48,0.553]
[1748521092451,0.29213286,684.62,683.48,0.553]
[1748521092651,1.01323201,684.61,683.48,0.553]
[1748521092853,1.01323202,684.6,683.48,0.553]
[1748521093050,1.01323249,684.59,683.48,0.553]
[1748521093254,1.01323249,684.58,683.48,0.553]
[1748521093454,1.01325123,684.57,683.48,0.553]
[1748521093759,1.01325087,684.56,683.48,0.553]
[1748521093954,1.01325087,684.55,683.48,0.553]
[1748521094159,1.01325087,684.54,683.48,0.553]
[1748521094455,1.01326993,684.53,683.48,0.553]
[1748521094659,1.01326993,684.52,683.48,0.553]
[1748521094955,0.29213286,684.62,683.48,0.553]
[1748521095155,1.01326952,684.61,683.48,0.553]
[1748521095360,1.01329195,684.6,683.48,0.553]
[1748521095556,1.01329195,684.59,683.5,0.45936335]
[1748521095765,1.01329195,684.58,683.5,0.45936335]
[1748521095961,1.01329195,684.57,683.5,0.45936335]
[1748521096157,1.01329352,684.56,683.51,0.45936335]
[1748521096360,1.01332002,684.55,683.51,0.45936335]
[1748521096561,0.29213286,684.62,683.51,0.45936335]
[1748521096761,1.01331788,684.61,683.51,0.45936335]
[1748521096957,1.01331788,684.6,683.52,0.45936335]
[1748521097163,1.01331788,684.59,683.51,0.45936335]
[1748521097462,1.01331788,684.58,683.5,0.45936335]
[1748521097663,1.01331538,684.57,683.5,0.45936335]
[1748521097866,1.01331538,684.56,683.5,0.45936335]
[1748521098063,1.01331538,684.55,683.5,0.45936335]
[1748521098264,1.01332927,684.54,683.5,0.45936335]
[1748521098565,0.29213286,684.62,683.48,1.01236335]
[1748521098962,1.01329184,684.61,683.48,1.01236335]
[1748521099158,1.01329184,684.6,683.58,0.45936335]
[1748521099464,1.01329184,684.59,683.48,1.01236335]
[1748521099765,1.01328982,684.58,683.48,1.01236335]
[1748521099958,1.01328982,684.57,683.48,1.01236335]
[1748521100160,0.29213286,684.62,683.48,0.553]
[1748521100359,1.01328365,684.61,683.48,0.553]
[1748521100563,0.29213286,684.62,683.48,0.553]
[1748521101064,0.29213286,684.62,683.48,1.01236335]
[1748521101265,1.01332399,684.61,683.53,0.45936335]
[1748521101464,0.29213286,684.62,683.53,0.45936335]
[1748521102066,1.01332672,684.61,683.53,0.45936335]
[1748521102365,0.29213286,684.62,683.53,0.45936335]
[1748521104362,1.01336134,684.61,683.53,0.45936335]
[1748521104565,1.01338081,684.6,683.53,0.45936335]
[1748521104764,1.01338081,684.59,683.53,0.45936335]
[1748521104963,1.01338081,684.58,683.53,0.45936335]
[1748521105263,1.01338081,684.57,683.53,0.45936335]
[1748521105462,1.01338081,684.56,683.53,0.45936335]
[1748521105668,1.01340859,684.55,683.5,0.45936335]
[1748521105968,0.29213286,684.62,683.5,0.45936335]
[1748521105969,1.01340883,684.54,683.5,0.45936335]
[1748521106170,1.01340883,684.53,683.5,0.45936335]
[1748521106369,1.01342888,684.52,683.5,0.45936335]
[1748521106572,1.01342888,684.51,683.51,0.45936335]
[1748521106871,1.01342888,684.5,683.51,0.45936335]
[1748521107069,0.29213286,684.62,683.51,0.45936335]
[1748521107369,1.01343482,684.61,683.51,0.45936335]
[1748521107572,1.01347754,684.6,683.51,0.45936335]
[1748521107765,1.01347754,684.59,683.51,0.45936335]
[1748521107967,1.01347754,684.58,683.51,0.45936335]
[1748521108168,1.01347754,684.57,683.51,0.45936335]
[1748521108365,1.01347754,684.56,683.51,0.45936335]
[1748521108569,1.01352647,684.55,683.53,0.45936335]
[1748521108765,0.29213286,684.62,683.53,0.45936335]
[1748521108965,1.01352136,684.61,683.53,0.45936335]
[1748521109170,1.01352136,684.6,683.65,0.45936335]
[1748521109366,1.01354318,684.59,683.68,0.45936335]
[1748521109665,1.01354366,684.58,683.68,0.45936335]
[1748521109865,1.01353844,684.57,683.68,0.45936335]
[1748521110069,0.29213286,684.62,683.68,0.45936335]
[1748521110070,1.01353844,684.56,683.68,0.45936335]
[1748521110266,1.01353844,684.55,683.68,0.45936335]
[1748521110570,1.01353844,684.54,683.68,0.45936335]
[1748521110871,1.01353844,684.53,683.68,0.45936335]
[1748521111071,1.01359305,684.52,683.61,0.45936335]
[1748521111270,1.01364669,684.51,683.62,0.45936335]
[1748521111466,1.01364669,684.5,683.62,0.45936335]
[1748521111671,1.01364669,684.49,683.62,0.45936335]
[1748521111872,1.01364669,684.48,683.61,0.45936335]
[1748521112070,1.01364669,684.47,683.61,0.45936335]
[1748521112271,1.01365473,684.46,683.61,0.45936335]
[1748521112471,1.01375896,684.45,683.59,0.45936335]
[1748521112668,0.29213286,684.62,683.58,0.45936335]
[1748521113073,1.01365964,684.61,683.57,0.45936335]
[1748521113275,1.01365964,684.6,683.58,0.45936335]
[1748521113578,1.01365964,684.59,683.58,0.45936335]
[1748521113776,1.01365964,684.58,683.58,0.45936335]
[1748521113974,1.01365964,684.57,683.58,0.45936335]
[1748521114169,1.0136412,684.56,683.58,0.45936335]
[1748521114371,0.29213286,684.62,683.58,0.45936335]
[1748521114671,1.0137074,684.61,683.58,0.45936335]
[1748521114868,0.29213286,684.62,683.58,0.45936335]
[1748521115274,1.01370643,684.61,683.58,0.45936335]
[1748521115474,1.01370643,684.6,683.61,0.45936335]
[1748521115774,0.29213286,684.62,683.61,0.45936335]
[1748521115775,1.01378383,684.59,683.61,0.45936335]
[1748521116075,1.01355563,684.58,683.61,0.45936335]
[1748521116274,1.01354432,684.57,683.61,0.45936335]
[1748521116475,1.01363481,684.56,683.61,0.45936335]
[1748521116776,0.29213286,684.62,683.62,0.45936335]
[1748521116972,1.01360774,684.61,683.62,0.45936335]
[1748521117172,1.01360774,684.6,683.62,0.45936335]
[1748521117371,0.29213286,684.62,683.63,0.45936335]
[1748521117372,1.01360774,684.59,683.63,0.45936335]
[1748521117572,1.01360774,684.58,683.63,0.45936335]
[1748521117772,1.01360774,684.57,683.63,0.45936335]
[1748521117973,1.01360774,684.56,683.63,0.45936335]
[1748521118269,0.29213286,684.62,683.63,0.45936335]
[1748521118270,1.01359988,684.55,683.63,0.45936335]
[1748521118470,1.01359988,684.54,683.63,0.45936335]
[1748521118671,1.01359311,684.53,683.63,0.45936335]
[1748521118871,1.01359311,684.52,683.58,0.45936335]
[1748521119071,1.01359311,684.51,683.58,0.45936335]
[1748521119272,1.01359311,684.5,683.58,0.45936335]
[1748521119475,1.01359311,684.49,683.57,0.45936335]
[1748521119676,1.01359311,684.48,683.57,0.45936335]
[1748521119878,1.01356129,684.47,683.57,0.45936335]
[1748521120073,1.0135611,684.46,683.57,0.45936335]
[1748521120279,0.29213286,684.62,683.57,0.45936335]
[1748521120477,1.0135541,684.61,683.57,0.45936335]
[1748521120781,1.0135541,684.6,683.6,0.45936335]
[1748521121078,1.0135541,684.59,683.6,0.45936335]
[1748521121275,1.0135541,684.58,683.61,0.45936335]
[1748521121481,1.0135541,684.57,683.61,0.45936335]
[1748521121782,1.0135431,684.56,683.61,0.45936335]
[1748521121976,1.0135431,684.55,683.61,0.45936335]
[1748521122277,0.29213286,684.62,683.65,0.45936335]
[1748521122481,0.29213286,684.62,683.66,0.45936335]
[1748521122685,1.01352714,684.61,683.66,0.45936335]
[1748521122880,0.29213286,684.62,683.67,0.45936335]
[1748521123076,1.01352843,684.61,683.67,0.45936335]
[1748521123277,1.01352787,684.6,683.67,0.45936335]
[1748521123481,0.29213286,684.62,683.67,0.45936335]
[1748521124177,0.29213286,684.62,683.58,0.52]
[1748521124178,1.01350679,684.61,683.66,0.45936335]
[1748521124480,1.01350679,684.6,683.66,0.45936335]
[1748521124681,0.29213286,684.62,683.66,0.45936335]
[1748521125677,0.29213286,684.62,683.67,0.45936335]
[1748521125982,1.01346108,684.61,683.68,0.45936335]
[1748521126278,0.29213286,684.62,683.68,0.45936335]
[1748521126884,1.0134562,684.61,683.68,0.45936335]
[1748521127083,0.29213286,684.62,683.67,0.45936335]
[1748521127283,1.01345668,684.61,683.68,0.45936335]
[1748521127484,1.01345982,684.6,683.68,0.45936335]
[1748521127682,1.01345842,684.59,683.68,0.45936335]
[1748521127885,1.01345715,684.58,683.61,0.45936335]
[1748521128084,0.29213286,684.62,683.61,0.45936335]
[1748521128585,1.01353356,684.61,683.62,0.45936335]
[1748521128784,1.01356741,684.6,683.66,0.45936335]
[1748521128985,1.01356741,684.59,683.66,0.45936335]
[1748521129183,1.01356499,684.58,683.66,0.45936335]
[1748521129387,1.01356499,684.57,683.67,0.45936335]
[1748521129682,1.01360108,684.56,683.67,0.45936335]
[1748521129886,0.29213286,684.62,683.67,0.45936335]
[1748521130184,0.29213286,684.62,683.58,0.52]
[1748521130185,1.0136036,684.61,683.68,0.45936335]
[1748521130384,1.0136036,684.6,683.68,0.45936335]
[1748521130584,1.0136036,684.59,683.68,0.45936335]
[1748521130786,1.0136036,684.58,683.67,0.45936335]
[1748521130983,1.0136036,684.57,683.67,0.45936335]
[1748521131285,1.0136036,684.56,683.67,0.45936335]
[1748521131486,1.01361132,684.55,683.67,0.45936335]
[1748521131688,0.29213286,684.62,683.68,0.45936335]
[1748521131883,1.01362687,684.54,683.68,0.45936335]
[1748521132200,1.01362828,684.53,683.69,0.45936335]
[1748521132387,1.0136416,684.52,683.69,0.45936335]
[1748521132584,1.01362687,684.54,683.69,0.45936335]
[1748521132784,1.0136369,684.53,683.69,0.45936335]
[1748521132986,1.01364034,684.52,683.69,0.45936335]
[1748521133187,1.01362687,684.54,683.69,0.45936335]
[1748521133589,1.01366206,684.53,683.69,0.45936335]
[1748521133888,1.01362687,684.54,683.69,0.45936335]
[1748521134292,1.01362687,684.54,683.6,0.45936335]
[1748521134491,1.01368628,684.53,683.61,0.45936335]
[1748521134690,1.01362687,684.54,683.61,0.45936335]
[1748521135190,1.01368669,684.53,683.61,0.45936335]
[1748521135384,1.01362687,684.54,683.61,0.45936335]
[1748521136089,1.01384597,684.53,683.61,0.45936335]
[1748521136290,1.01362687,684.54,683.61,0.45936335]
[1748521136988,1.01362687,684.54,683.58,0.52]
[1748521137188,1.01393013,684.53,683.58,0.52]
[1748521137484,1.01362687,684.54,683.58,0.52]
[1748521137688,1.01392741,684.53,683.58,0.52]
[1748521137891,1.01362687,684.54,683.58,0.52]
[1748521137892,1.01392741,684.52,683.58,0.52]
[1748521138089,1.01392741,684.51,683.58,0.52]
[1748521138286,1.01392741,684.5,683.58,0.52]
[1748521138591,1.01362687,684.54,683.58,0.52]
[1748521138891,1.01398245,684.53,683.58,0.52]
[1748521139092,1.01362687,684.54,683.58,0.52]
[1748521139290,1.01399214,684.53,683.58,0.52]
[1748521139489,1.01399214,684.52,683.58,0.52]
[1748521139688,1.01399214,684.51,683.58,0.52]
[1748521139893,1.01399214,684.5,683.58,0.52]
[1748521140186,1.01405091,684.49,683.58,0.52]
[1748521140387,1.01405091,684.48,683.58,0.52]
[1748521140589,1.01403953,684.47,683.58,0.52]
[1748521140787,1.01403953,684.46,683.58,0.52]
[1748521140988,1.01403953,684.45,683.58,0.52]
[1748521141187,1.01403953,684.44,683.58,0.52]
[1748521141392,1.01403953,684.43,683.58,0.52]
[1748521141593,1.01403953,684.42,683.58,0.52]
[1748521141787,1.01403953,684.41,683.58,0.52]
[1748521141987,1.01403953,684.4,683.58,0.52]
[1748521142191,1.01362687,684.54,683.58,0.52]
[1748521142192,1.01403852,684.39,683.58,0.52]
[1748521142391,1.01403852,684.38,683.58,0.52]
[1748521142586,1.01403722,684.37,683.58,0.52]
[1748521142789,1.01362687,684.54,683.58,0.52]
[1748521142993,1.01402935,684.53,683.58,0.52]
[1748521143289,1.01402935,684.52,683.58,0.52]
[1748521143488,1.01402935,684.51,683.58,0.52]
[1748521143794,1.01402935,684.5,683.58,0.52]
[1748521143994,1.01402935,684.49,683.58,0.52]
[1748521144191,1.01416199,684.48,683.58,0.52]
[1748521144388,1.01416636,684.47,683.58,0.52]
[1748521144593,1.01416636,684.46,683.58,0.52]
[1748521144793,1.01416636,684.45,683.58,0.52]
[1748521144993,1.01416636,684.44,683.58,0.52]
[1748521145189,1.01416636,684.43,683.58,0.52]
[1748521145494,1.01427777,684.42,683.58,0.52]
[1748521145690,1.01427777,684.41,683.58,0.52]
[1748521145891,1.01428713,684.4,683.58,0.52]
[1748521146087,1.01428713,684.39,683.58,0.52]
[1748521146292,1.01362687,684.54,683.58,0.52]
[1748521146689,1.01429309,684.53,683.58,0.52]
[1748521146894,1.01362687,684.54,683.58,0.97936335]
[1748521148293,1.0142938,684.53,683.58,0.52]
[1748521148493,1.01362687,684.54,683.58,0.52]
[1748521148994,1.01430532,684.53,683.58,0.52]
[1748521149196,1.01430341,684.52,683.58,0.52]
[1748521149493,1.01430341,684.51,683.58,0.52]
[1748521149693,1.01430293,684.5,683.58,0.52]
[1748521149899,1.01430293,684.49,683.58,0.52]
[1748521150092,1.01362687,684.54,683.58,0.52]
[1748521150093,1.01429827,684.48,683.58,0.52]
[1748521150297,1.01428381,684.47,683.58,0.52]
[1748521150496,1.01424891,684.46,683.58,0.52]
[1748521150694,1.01426238,684.45,683.58,0.52]
[1748521150995,1.01362687,684.54,683.58,0.52]
[1748521151298,1.01424487,684.53,683.58,0.52]
[1748521151501,1.01424487,684.52,683.58,0.52]
[1748521151705,1.0141998,684.51,683.58,0.52]
[1748521151997,1.0141998,684.5,683.58,0.52]
[1748521152202,1.01362687,684.54,683.58,0.52]
[1748521152401,1.01419115,684.53,683.58,0.52]
[1748521152597,1.01418978,684.52,683.58,0.52]
[1748521152795,1.01418978,684.51,683.58,0.52]
[1748521153103,1.01418978,684.5,683.58,0.52]
[1748521153295,1.01362687,684.54,683.58,0.52]
[1748521153296,1.01418978,684.49,683.58,0.52]
[1748521153499,1.01418978,684.48,683.58,0.52]
[1748521153699,1.01418978,684.47,683.58,0.52]
[1748521153900,1.01362687,684.54,683.58,0.52]
[1748521153901,1.01418978,684.46,683.58,0.52]
[1748521154106,1.01418978,684.45,683.58,0.52]
[1748521154304,1.01400782,684.44,683.58,0.52]
[1748521154501,1.01400651,684.43,683.58,0.52]
[1748521154705,1.01400651,684.42,683.58,0.52]
[1748521154898,1.01400833,684.41,683.58,0.52]
[1748521155099,1.01362687,684.54,683.58,0.52]
[1748521155100,1.01400833,684.4,683.58,0.52]
[1748521155298,1.01400833,684.39,683.58,0.52]
[1748521155504,1.01400833,684.38,683.58,0.52]
[1748521155705,1.01400833,684.37,683.58,0.52]
[1748521155905,1.01400833,684.36,683.58,0.52]
[1748521156208,1.0163902,684.35,683.58,0.52]
[1748521156507,1.01639022,684.34,683.58,0.52]
[1748521156700,1.01637678,684.33,683.58,0.52]
[1748521156901,1.01637678,684.32,683.58,0.52]
[1748521157103,1.01631773,684.31,683.58,0.52]
[1748521157306,1.01631773,684.3,683.58,0.52]
[1748521157505,1.0163041,684.29,683.58,0.52]
[1748521157701,1.0163041,684.28,683.58,0.52]
[1748521158005,1.0163041,684.27,683.58,0.52]
[1748521158207,1.0163041,684.26,683.58,0.52]
[1748521158402,1.0163041,684.25,683.58,0.52]
[1748521158606,1.01622909,684.24,683.58,0.52]
[1748521158806,1.01622909,684.23,683.58,0.52]
[1748521159101,1.01622909,684.22,683.59,0.45936335]
[1748521159305,1.01622909,684.21,683.58,0.52]
[1748521159503,1.01622909,684.2,683.58,0.52]
[1748521159702,1.01622909,684.19,683.58,0.52]
[1748521159904,1.01622909,684.18,683.58,0.52]
[1748521160107,1.01362687,684.54,683.58,0.52]
[1748521160108,1.01622909,684.17,683.58,0.52]
[1748521160409,1.01616926,684.16,683.58,0.52]
[1748521160601,1.01615727,684.15,683.58,0.52]
[1748521160800,1.01615727,684.14,683.58,0.52]
[1748521161101,1.01615727,684.13,683.58,0.52]
[1748521161307,1.01612756,684.12,683.58,0.52]
[1748521161507,1.01362687,684.54,683.58,0.52]
[1748521161707,1.01612783,684.53,683.58,0.52]
[1748521161907,1.01362687,684.54,683.58,0.52]
[1748521162105,1.01610859,684.53,683.58,0.52]
[1748521162308,1.01362687,684.54,683.58,0.52]
[1748521162507,1.01610859,684.53,683.58,0.52]
[1748521162709,1.01362687,684.54,683.58,0.52]
[1748521162910,1.01610523,684.52,683.58,0.52]
[1748521163110,1.01610349,684.51,683.58,0.52]
[1748521163312,1.01611393,684.5,683.58,0.52]
[1748521163510,1.01611393,684.49,683.58,0.52]
[1748521163806,1.01362687,684.54,683.58,0.52]
[1748521164311,1.01663385,684.53,683.58,0.52]
[1748521164506,1.01663172,684.52,683.58,0.52]
[1748521164711,1.01663172,684.51,683.58,0.52]
[1748521164909,1.01663172,684.5,683.58,0.52]
[1748521165111,1.01663172,684.49,683.58,0.52]
[1748521165311,1.01663172,684.48,683.58,0.52]
[1748521165511,1.01679499,684.47,683.58,0.52]
[1748521165806,1.01362687,684.54,683.53,0.45936335]
[1748521166111,1.0168158,684.53,683.53,0.45936335]
[1748521166311,1.0168158,684.52,683.52,0.45936335]
[1748521166506,1.0168158,684.51,683.52,0.45936335]
[1748521166705,1.0168158,684.5,683.52,0.45936335]
[1748521166911,1.0168158,684.49,683.52,0.45936335]
[1748521167208,1.01680548,684.48,683.54,0.45936335]
[1748521167405,1.01680548,684.47,683.54,0.45936335]
[1748521167608,1.01680548,684.46,683.54,0.45936335]
[1748521167809,1.01683684,684.45,683.55,0.367]
[1748521168008,1.01683726,684.44,683.55,0.367]
[1748521168212,1.01681948,684.43,683.55,0.367]
[1748521168411,1.01681948,684.42,683.55,0.367]
[1748521168607,1.01681948,684.41,683.55,0.367]
[1748521168809,1.01681948,684.4,683.55,0.367]
[1748521169007,1.01362687,684.54,683.55,0.367]
[1748521169208,1.01691978,684.53,683.7,0.45936335]
[1748521169409,1.01692186,684.52,683.71,0.45936335]
[1748521169608,1.01694851,684.51,683.7,0.45936335]
[1748521169810,1.01694851,684.5,683.7,0.45936335]
[1748521170012,1.01694851,684.49,683.7,0.45936335]
[1748521170316,1.01692756,684.48,683.7,0.45936335]
[1748521170514,1.01692756,684.47,683.71,0.45936335]
[1748521170816,1.01362687,684.54,683.7,0.45936335]
[1748521171113,1.01694918,684.53,683.7,0.45936335]
[1748521171412,1.01362687,684.54,683.7,0.45936335]
[1748521171611,1.0169473,684.53,683.7,0.45936335]
[1748521171917,1.01706826,684.52,683.7,0.45936335]
[1748521172116,1.01706826,684.51,683.7,0.45936335]
[1748521172310,1.01725714,684.5,683.7,0.45936335]
[1748521172509,1.01725714,684.49,683.7,0.45936335]
[1748521172716,1.01725714,684.48,683.7,0.45936335]
[1748521172917,1.01732133,684.47,683.7,0.45936335]